[Event "*** SCC Grand Prix: Titled Tuesday Blitz"]
[Site "Chess.com"]
[Date "2020.10.13"]
[Round "3"]
[White "Matols"]
[Black "anasta10"]
[Result "1/2-1/2"]
[WhiteElo "2255"]
[BlackElo "2413"]
[TimeControl "180+1"]
[EndTime "10:30:05 PDT"]
[Termination "Game drawn by repetition"]

1. d4 {[%clk 0:03:00.9]} 1... Nf6 {[%clk 0:02:55.6]} 2. c4 {[%clk 0:03:00.6]}
2... g6 {[%clk 0:02:56]} 3. g3 {[%clk 0:03:00.4]} 3... d5 {[%clk 0:02:56.4]} 4.
cxd5 {[%clk 0:02:57.3]} 4... Nxd5 {[%clk 0:02:56.1]} 5. Nf3 {[%clk 0:02:56.5]}
5... Bg7 {[%clk 0:02:55.8]} 6. Bg2 {[%clk 0:02:56.6]} 6... O-O {[%clk
0:02:55.4]} 7. O-O {[%clk 0:02:56.4]} 7... Nc6 {[%clk 0:02:54.9]} 8. Nc3 {[%clk
0:02:55.7]} 8... Nxc3 {[%clk 0:02:54.5]} 9. bxc3 {[%clk 0:02:55.3]} 9... e5
{[%clk 0:02:55]} 10. d5 {[%clk 0:02:38.4]} 10... Na5 {[%clk 0:02:49.9]} 11. e4
{[%clk 0:02:37.3]} 11... b6 {[%clk 0:02:38.5]} 12. Re1 {[%clk 0:02:32.6]} 12...
Re8 {[%clk 0:02:25.2]} 13. Qe2 {[%clk 0:02:14.3]} 13... c6 {[%clk 0:02:23.6]}
14. Nd2 {[%clk 0:01:59.2]} 14... Bb7 {[%clk 0:02:19.3]} 15. c4 {[%clk
0:01:49.4]} 15... Rc8 {[%clk 0:02:16.4]} 16. Bb2 {[%clk 0:01:44.6]} 16... Ba6
{[%clk 0:02:13.5]} 17. Rac1 {[%clk 0:01:36.7]} 17... Qd7 {[%clk 0:02:11.1]} 18.
Bf1 {[%clk 0:01:33.4]} 18... f5 {[%clk 0:02:01.9]} 19. exf5 {[%clk 0:01:08.4]}
19... gxf5 {[%clk 0:02:00.5]} 20. dxc6 {[%clk 0:01:00.1]} 20... Rxc6 {[%clk
0:02:01.4]} 21. Red1 {[%clk 0:00:54.4]} 21... Qc8 {[%clk 0:01:56.2]} 22. Bg2
{[%clk 0:00:51.5]} 22... Rc7 {[%clk 0:01:51.5]} 23. Bd5+ {[%clk 0:00:51.1]}
23... Kh8 {[%clk 0:01:51.3]} 24. Re1 {[%clk 0:00:40.7]} 24... Qd8 {[%clk
0:01:17.5]} 25. Qh5 {[%clk 0:00:37.5]} 25... Bc8 {[%clk 0:00:55.7]} 26. Nf3
{[%clk 0:00:34.4]} 26... e4 {[%clk 0:00:53.8]} 27. Bxg7+ {[%clk 0:00:32.7]}
27... Rxg7 {[%clk 0:00:54.7]} 28. Nh4 {[%clk 0:00:26.5]} 28... Rf8 {[%clk
0:00:50.4]} 29. f3 {[%clk 0:00:20.4]} 29... Bb7 {[%clk 0:00:40.3]} 30. fxe4
{[%clk 0:00:19.5]} 30... fxe4 {[%clk 0:00:38.7]} 31. Rxe4 {[%clk 0:00:19.1]}
31... Bxd5 {[%clk 0:00:38.8]} 32. cxd5 {[%clk 0:00:19.3]} 32... Nb7 {[%clk
0:00:36.8]} 33. Rce1 {[%clk 0:00:18.9]} 33... Nd6 {[%clk 0:00:33.7]} 34. Re6
{[%clk 0:00:19.1]} 34... Kg8 {[%clk 0:00:23.4]} 35. Qe5 {[%clk 0:00:17.1]} 35...
Nf7 {[%clk 0:00:20.5]} 36. Qe4 {[%clk 0:00:16.5]} 36... Ng5 {[%clk 0:00:19.5]}
37. Qe5 {[%clk 0:00:15.8]} 37... Nxe6 {[%clk 0:00:17.5]} 38. dxe6 {[%clk
0:00:15.8]} 38... Qe7 {[%clk 0:00:17.5]} 39. Nf5 {[%clk 0:00:15.4]} 39... Qc5+
{[%clk 0:00:11.8]} 40. Qxc5 {[%clk 0:00:15.4]} 40... bxc5 {[%clk 0:00:12.7]} 41.
Nxg7 {[%clk 0:00:15.5]} 41... Kxg7 {[%clk 0:00:13.6]} 42. Kg2 {[%clk 0:00:11.8]}
42... Re8 {[%clk 0:00:12.5]} 43. Re5 {[%clk 0:00:10.8]} 43... c4 {[%clk
0:00:11.9]} 44. Rc5 {[%clk 0:00:10.7]} 44... Rxe6 {[%clk 0:00:11.2]} 45. Rxc4
{[%clk 0:00:10.4]} 45... Re2+ {[%clk 0:00:11.1]} 46. Kh3 {[%clk 0:00:10.5]}
46... Rxa2 {[%clk 0:00:12]} 47. Rc8 {[%clk 0:00:08.5]} 47... a5 {[%clk
0:00:11.7]} 48. Ra8 {[%clk 0:00:08.6]} 48... a4 {[%clk 0:00:12]} 49. Kg4 {[%clk
0:00:08.8]} 49... a3 {[%clk 0:00:11.4]} 50. h4 {[%clk 0:00:08.7]} 50... Ra1
{[%clk 0:00:09.9]} 51. Ra6 {[%clk 0:00:08.2]} 51... a2 {[%clk 0:00:09.7]} 52.
Kg5 {[%clk 0:00:08.5]} 52... h6+ {[%clk 0:00:08.5]} 53. Kh5 {[%clk 0:00:07.3]}
53... Rg1 {[%clk 0:00:05.1]} 54. Rxa2 {[%clk 0:00:06.3]} 54... Rxg3 {[%clk
0:00:05.2]} 55. Ra7+ {[%clk 0:00:06.3]} 55... Kg8 {[%clk 0:00:05.6]} 56. Kxh6
{[%clk 0:00:06.4]} 56... Rb3 {[%clk 0:00:05.7]} 57. h5 {[%clk 0:00:06.6]} 57...
Rb6+ {[%clk 0:00:05.1]} 58. Kg5 {[%clk 0:00:06.8]} 58... Rb5+ {[%clk 0:00:05.5]}
59. Kg6 {[%clk 0:00:07.1]} 59... Rb6+ {[%clk 0:00:05.8]} 60. Kg5 {[%clk
0:00:07.6]} 60... Rb5+ {[%clk 0:00:06.2]} 61. Kg6 {[%clk 0:00:08]} 61... Rb6+
{[%clk 0:00:06.5]} 62. Kg5 {[%clk 0:00:08.4]} 1/2-1/2

[Event "*** SCC Grand Prix: Titled Tuesday Blitz"]
[Site "Chess.com"]
[Date "2020.10.13"]
[Round "3"]
[White "Fandorine"]
[Black "IwkooO"]
[Result "1-0"]
[WhiteElo "2868"]
[BlackElo "2649"]
[TimeControl "180+1"]
[EndTime "10:30:13 PDT"]
[Termination "Fandorine won by resignation"]

1. Nf3 {[%clk 0:03:00.9]} 1... c5 {[%clk 0:03:00]} 2. g3 {[%clk 0:03:01.1]} 2...
Nc6 {[%clk 0:03:00.3]} 3. Bg2 {[%clk 0:03:01.6]} 3... g6 {[%clk 0:03:00.9]} 4.
O-O {[%clk 0:03:01.7]} 4... Bg7 {[%clk 0:03:01.4]} 5. d3 {[%clk 0:03:02.6]} 5...
d6 {[%clk 0:03:00.7]} 6. Nbd2 {[%clk 0:03:03.1]} 6... e5 {[%clk 0:02:58.3]} 7.
e4 {[%clk 0:03:03.3]} 7... Nge7 {[%clk 0:02:58.9]} 8. a4 {[%clk 0:03:03.8]} 8...
O-O {[%clk 0:02:59.3]} 9. c3 {[%clk 0:03:04.4]} 9... h6 {[%clk 0:02:56.9]} 10.
Nc4 {[%clk 0:03:04.2]} 10... Be6 {[%clk 0:02:57.3]} 11. Re1 {[%clk 0:03:02.4]}
11... f5 {[%clk 0:02:57.2]} 12. Nfd2 {[%clk 0:02:48.6]} 12... f4 {[%clk
0:02:54.3]} 13. a5 {[%clk 0:02:48.2]} 13... Kh7 {[%clk 0:02:48.5]} 14. Qa4
{[%clk 0:02:13]} 14... Qd7 {[%clk 0:02:39.8]} 15. b4 {[%clk 0:01:57.7]} 15...
cxb4 {[%clk 0:02:34]} 16. cxb4 {[%clk 0:01:58.6]} 16... Rf7 {[%clk 0:02:18.8]}
17. Bb2 {[%clk 0:01:49.8]} 17... Raf8 {[%clk 0:02:18]} 18. f3 {[%clk 0:01:43]}
18... fxg3 {[%clk 0:02:10.2]} 19. hxg3 {[%clk 0:01:43.9]} 19... g5 {[%clk
0:02:10]} 20. b5 {[%clk 0:01:42.3]} 20... Nd4 {[%clk 0:01:33.9]} 21. Bxd4 {[%clk
0:01:42.2]} 21... exd4 {[%clk 0:01:34]} 22. b6 {[%clk 0:01:42.7]} 22... Qxa4
{[%clk 0:00:20.8]} 23. Rxa4 {[%clk 0:01:43.6]} 23... axb6 {[%clk 0:00:18.1]} 24.
axb6 {[%clk 0:01:32.7]} 24... Nc8 {[%clk 0:00:14.1]} 25. Ra5 {[%clk 0:01:24.9]}
25... Bf6 {[%clk 0:00:10]} 26. Nxd6 {[%clk 0:00:52.1]} 26... Nxd6 {[%clk
0:00:09.8]} 27. e5 {[%clk 0:00:52.7]} 27... Bxe5 {[%clk 0:00:07.1]} 28. Raxe5
{[%clk 0:00:50.8]} 28... Bd7 {[%clk 0:00:06.5]} 29. g4 {[%clk 0:00:44.8]} 29...
Bc6 {[%clk 0:00:06.6]} 30. Nb3 {[%clk 0:00:26.3]} 30... Bxf3 {[%clk 0:00:04.9]}
31. Nxd4 {[%clk 0:00:26.4]} 31... Bxg2 {[%clk 0:00:05.1]} 32. Kxg2 {[%clk
0:00:27.3]} 32... Rf2+ {[%clk 0:00:05.3]} 33. Kg3 {[%clk 0:00:27.4]} 33... Rd2
{[%clk 0:00:05.6]} 34. R1e3 {[%clk 0:00:21.5]} 34... Rf7 {[%clk 0:00:04.9]} 35.
Re6 {[%clk 0:00:12.3]} 35... Nc8 {[%clk 0:00:04.9]} 36. Nf3 {[%clk 0:00:12.3]}
36... Rd1 {[%clk 0:00:04.2]} 37. Nd4 {[%clk 0:00:05.6]} 37... Rd7 {[%clk
0:00:04.3]} 38. Nf5 {[%clk 0:00:05.1]} 38... R1xd3 {[%clk 0:00:04.3]} 39. Rxh6+
{[%clk 0:00:05.1]} 39... Kg8 {[%clk 0:00:04.6]} 40. Rg6+ {[%clk 0:00:03.9]}
40... Kf7 {[%clk 0:00:04.5]} 41. Rxg5 {[%clk 0:00:02.9]} 41... Rxe3+ {[%clk
0:00:05]} 42. Nxe3 {[%clk 0:00:03.8]} 42... Nxb6 {[%clk 0:00:05.6]} 43. Nf5
{[%clk 0:00:04.3]} 43... Nd5 {[%clk 0:00:05.8]} 44. Rg7+ {[%clk 0:00:04]} 44...
Ke6 {[%clk 0:00:06]} 45. Nd4+ {[%clk 0:00:04.1]} 45... Kd6 {[%clk 0:00:06.1]}
46. Rg6+ {[%clk 0:00:04.5]} 46... Ke5 {[%clk 0:00:06]} 47. Nf3+ {[%clk
0:00:04.7]} 47... Ke4 {[%clk 0:00:06.5]} 48. Re6+ {[%clk 0:00:05.1]} 48... Kd3
{[%clk 0:00:05]} 49. Ne5+ {[%clk 0:00:05.6]} 49... Kd4 {[%clk 0:00:05.2]} 50.
Nxd7 {[%clk 0:00:06.5]} 50... Nc7 {[%clk 0:00:03.1]} 51. Rd6+ {[%clk 0:00:06.5]}
51... Ke4 {[%clk 0:00:03.1]} 52. Rb6 {[%clk 0:00:05.4]} 52... Nd5 {[%clk
0:00:03.3]} 53. Rxb7 {[%clk 0:00:05.3]} 53... Nc3 {[%clk 0:00:04.1]} 54. Nf6+
{[%clk 0:00:05.2]} 54... Ke5 {[%clk 0:00:04.4]} 55. Nd7+ {[%clk 0:00:04.7]}
55... Ke6 {[%clk 0:00:04.6]} 56. Nf8+ {[%clk 0:00:05]} 56... Kf6 {[%clk
0:00:04.7]} 57. Rb6+ {[%clk 0:00:05]} 57... Kg5 {[%clk 0:00:04.9]} 58. Ne6+
{[%clk 0:00:05.2]} 58... Kf6 {[%clk 0:00:05]} 59. Nf4+ {[%clk 0:00:05.7]} 59...
Ke5 {[%clk 0:00:05.5]} 60. Re6+ {[%clk 0:00:06.2]} 60... Kd4 {[%clk 0:00:05.1]}
61. Re1 {[%clk 0:00:06.2]} 61... Ne4+ {[%clk 0:00:03.9]} 62. Rxe4+ {[%clk
0:00:05.9]} 62... Kxe4 {[%clk 0:00:04.8]} 63. g5 {[%clk 0:00:06.4]} 1-0

[Event "*** SCC Grand Prix: Titled Tuesday Blitz"]
[Site "Chess.com"]
[Date "2020.10.13"]
[Round "3"]
[White "tteshan"]
[Black "chiwii"]
[Result "1-0"]
[WhiteElo "2376"]
[BlackElo "2215"]
[TimeControl "180+1"]
[EndTime "10:30:13 PDT"]
[Termination "tteshan won by resignation"]

1. e4 {[%clk 0:03:00.9]} 1... c5 {[%clk 0:02:59.7]} 2. c3 {[%clk 0:03:00.3]}
2... e6 {[%clk 0:02:58.4]} 3. d4 {[%clk 0:02:54.1]} 3... cxd4 {[%clk 0:02:53.7]}
4. cxd4 {[%clk 0:02:55]} 4... d5 {[%clk 0:02:54.1]} 5. e5 {[%clk 0:02:53.3]}
5... Nc6 {[%clk 0:02:54.5]} 6. Nf3 {[%clk 0:02:51.8]} 6... Nge7 {[%clk
0:02:51.9]} 7. Nc3 {[%clk 0:02:45.2]} 7... Ng6 {[%clk 0:02:49.2]} 8. Bd3 {[%clk
0:02:41.6]} 8... Bb4 {[%clk 0:02:47.9]} 9. O-O {[%clk 0:02:32.8]} 9... Bd7
{[%clk 0:02:47.4]} 10. Bd2 {[%clk 0:02:25.7]} 10... O-O {[%clk 0:02:46]} 11. Rc1
{[%clk 0:02:18]} 11... Rc8 {[%clk 0:02:44.1]} 12. a3 {[%clk 0:02:14]} 12... Be7
{[%clk 0:02:42.9]} 13. Ne2 {[%clk 0:02:07.7]} 13... b6 {[%clk 0:02:13.4]} 14. g3
{[%clk 0:01:48.4]} 14... f6 {[%clk 0:01:57.3]} 15. exf6 {[%clk 0:01:10.4]} 15...
Rxf6 {[%clk 0:01:46.3]} 16. Nf4 {[%clk 0:01:02.9]} 16... Nxf4 {[%clk 0:01:44.9]}
17. Bxf4 {[%clk 0:01:02.2]} 17... Rxf4 {[%clk 0:01:32.2]} 18. gxf4 {[%clk
0:01:01.2]} 18... Bd6 {[%clk 0:01:32.2]} 19. Ne5 {[%clk 0:00:49.2]} 19... Bxe5
{[%clk 0:01:23.4]} 20. fxe5 {[%clk 0:00:44.9]} 20... Qg5+ {[%clk 0:01:21.1]} 21.
Kh1 {[%clk 0:00:43.5]} 21... Qf4 {[%clk 0:01:18.3]} 22. Qh5 {[%clk 0:00:21.2]}
22... g6 {[%clk 0:00:20.5]} 23. Rg1 {[%clk 0:00:21]} 23... Be8 {[%clk 0:00:17]}
24. Qe2 {[%clk 0:00:18.7]} 24... Qxd4 {[%clk 0:00:15.6]} 25. Qe3 {[%clk
0:00:15.9]} 25... Qxe3 {[%clk 0:00:15.8]} 26. fxe3 {[%clk 0:00:16.8]} 26... Rd8
{[%clk 0:00:15.3]} 27. Bb5 {[%clk 0:00:15.5]} 27... Nxe5 {[%clk 0:00:15.6]} 28.
Bxe8 {[%clk 0:00:16]} 28... Rxe8 {[%clk 0:00:16.5]} 29. Rc7 {[%clk 0:00:15.3]}
29... Nc4 {[%clk 0:00:15.3]} 30. Rxa7 {[%clk 0:00:13.3]} 30... Nxe3 {[%clk
0:00:14.5]} 31. Rc1 {[%clk 0:00:13.7]} 31... d4 {[%clk 0:00:14.5]} 32. Rcc7
{[%clk 0:00:12]} 32... Nf5 {[%clk 0:00:14.9]} 33. Rxh7 {[%clk 0:00:10.9]} 33...
d3 {[%clk 0:00:15.3]} 34. Rhd7 {[%clk 0:00:10.9]} 34... e5 {[%clk 0:00:13.8]}
35. Rxd3 {[%clk 0:00:11]} 35... e4 {[%clk 0:00:14.7]} 36. Rd1 {[%clk 0:00:10.3]}
36... e3 {[%clk 0:00:14.9]} 37. Re1 {[%clk 0:00:09.4]} 37... Rc8 {[%clk
0:00:15.2]} 38. Kg2 {[%clk 0:00:08.6]} 38... Rc2+ {[%clk 0:00:15.7]} 39. Kf3
{[%clk 0:00:08.6]} 39... Rxb2 {[%clk 0:00:16.2]} 40. Rd1 {[%clk 0:00:06.4]}
40... Rf2+ {[%clk 0:00:11.1]} 41. Ke4 {[%clk 0:00:04.7]} 41... Rd2 {[%clk
0:00:11]} 42. Rc1 {[%clk 0:00:04.7]} 42... Rd4+ {[%clk 0:00:10.2]} 43. Ke5
{[%clk 0:00:04.9]} 43... Rd8 {[%clk 0:00:10.1]} 44. Re1 {[%clk 0:00:04.7]} 44...
Re8+ {[%clk 0:00:10.5]} 45. Kd5 {[%clk 0:00:04.5]} 45... e2 {[%clk 0:00:10.5]}
46. Rc7 {[%clk 0:00:04.1]} 46... Ne3+ {[%clk 0:00:10.9]} 47. Kd4 {[%clk
0:00:03.4]} 47... Ng2 {[%clk 0:00:11.4]} 48. Rxe2 {[%clk 0:00:03]} 48... Rxe2
{[%clk 0:00:12.3]} 49. Rc6 {[%clk 0:00:03.3]} 49... Rd2+ {[%clk 0:00:12.6]} 50.
Kc3 {[%clk 0:00:03.2]} 50... Rd8 {[%clk 0:00:10.3]} 51. Rxg6+ {[%clk 0:00:03.6]}
51... Kf7 {[%clk 0:00:09.9]} 52. Rxg2 {[%clk 0:00:04.5]} 52... Ra8 {[%clk
0:00:10.1]} 53. Rf2+ {[%clk 0:00:04.9]} 53... Ke6 {[%clk 0:00:10.3]} 54. Kb4
{[%clk 0:00:05.8]} 54... Rh8 {[%clk 0:00:09.3]} 55. Re2+ {[%clk 0:00:05.6]}
55... Kd5 {[%clk 0:00:09.5]} 56. Kb5 {[%clk 0:00:05.8]} 56... Rh3 {[%clk
0:00:09.6]} 57. Kxb6 {[%clk 0:00:05.6]} 57... Rxa3 {[%clk 0:00:10.1]} 58. Kb5
{[%clk 0:00:04.6]} 58... Rh3 {[%clk 0:00:10.4]} 59. Rd2+ {[%clk 0:00:04.8]}
59... Ke4 {[%clk 0:00:10.7]} 60. Kc4 {[%clk 0:00:05.3]} 60... Ke3 {[%clk
0:00:10.9]} 61. Rd3+ {[%clk 0:00:05.7]} 61... Ke2 {[%clk 0:00:11.2]} 62. Rxh3
{[%clk 0:00:06.6]} 62... Kf1 {[%clk 0:00:11.7]} 63. Rh8 {[%clk 0:00:06.9]} 63...
Kg2 {[%clk 0:00:12]} 64. h4 {[%clk 0:00:07.8]} 64... Kg3 {[%clk 0:00:12.4]} 65.
h5 {[%clk 0:00:08.7]} 65... Kh3 {[%clk 0:00:13.1]} 66. h6 {[%clk 0:00:09.1]} 1-0

[Event "*** SCC Grand Prix: Titled Tuesday Blitz"]
[Site "Chess.com"]
[Date "2020.10.13"]
[Round "3"]
[White "lacafi"]
[Black "RoelandPruijssers"]
[Result "0-1"]
[WhiteElo "2121"]
[BlackElo "2495"]
[TimeControl "180+1"]
[EndTime "10:30:16 PDT"]
[Termination "RoelandPruijssers won on time"]

1. d4 {[%clk 0:02:51.4]} 1... f5 {[%clk 0:02:57.7]} 2. Nf3 {[%clk 0:02:51.5]}
2... Nf6 {[%clk 0:02:57.2]} 3. g3 {[%clk 0:02:51.8]} 3... g6 {[%clk 0:02:57.1]}
4. Bg2 {[%clk 0:02:52.3]} 4... Bg7 {[%clk 0:02:55.9]} 5. O-O {[%clk 0:02:52.9]}
5... O-O {[%clk 0:02:55.9]} 6. c4 {[%clk 0:02:53.2]} 6... d6 {[%clk 0:02:55.7]}
7. Nc3 {[%clk 0:02:51.9]} 7... Qe8 {[%clk 0:02:51]} 8. d5 {[%clk 0:02:45]} 8...
Na6 {[%clk 0:02:47.3]} 9. Nd4 {[%clk 0:02:37.3]} 9... Bd7 {[%clk 0:02:37.6]} 10.
a3 {[%clk 0:02:33.4]} 10... c6 {[%clk 0:02:30.2]} 11. dxc6 {[%clk 0:02:28.3]}
11... bxc6 {[%clk 0:02:29.8]} 12. b4 {[%clk 0:02:28.6]} 12... e5 {[%clk
0:02:28]} 13. Nb3 {[%clk 0:02:23.1]} 13... e4 {[%clk 0:02:03.2]} 14. Qxd6 {[%clk
0:01:25.8]} 14... Ng4 {[%clk 0:01:11.8]} 15. Qd2 {[%clk 0:01:17.6]} 15... Rd8
{[%clk 0:00:49.1]} 16. Qc2 {[%clk 0:01:10.5]} 16... Be6 {[%clk 0:00:47.4]} 17.
Na5 {[%clk 0:01:10.4]} 17... Ne5 {[%clk 0:00:46]} 18. Bb2 {[%clk 0:00:52.7]}
18... Nxc4 {[%clk 0:00:43.2]} 19. Nxc4 {[%clk 0:00:36.6]} 19... Bxc4 {[%clk
0:00:42.8]} 20. Nxe4 {[%clk 0:00:19.5]} 20... Bd5 {[%clk 0:00:43]} 21. Bxg7
{[%clk 0:00:18.3]} 21... Kxg7 {[%clk 0:00:43.4]} 22. Qc3+ {[%clk 0:00:17.5]}
22... Kh6 {[%clk 0:00:42.5]} 23. Qc1+ {[%clk 0:00:16.2]} 23... Kg7 {[%clk
0:00:41.7]} 24. Qc3+ {[%clk 0:00:16.6]} 24... Kh6 {[%clk 0:00:42.3]} 25. Qc1+
{[%clk 0:00:16.8]} 25... f4 {[%clk 0:00:43.2]} 26. Nc5 {[%clk 0:00:14.3]} 26...
Nxc5 {[%clk 0:00:41.1]} 27. bxc5 {[%clk 0:00:13.6]} 27... Bxg2 {[%clk
0:00:40.6]} 28. Kxg2 {[%clk 0:00:13.8]} 28... Qxe2 {[%clk 0:00:39.6]} 29. gxf4
{[%clk 0:00:13.7]} 29... Qg4+ {[%clk 0:00:39]} 30. Kh1 {[%clk 0:00:13.3]} 30...
Qf3+ {[%clk 0:00:23.1]} 31. Kg1 {[%clk 0:00:13.3]} 31... Qg4+ {[%clk 0:00:24]}
32. Kh1 {[%clk 0:00:13.4]} 32... Qf3+ {[%clk 0:00:20.9]} 33. Kg1 {[%clk
0:00:13.3]} 33... Rxf4 {[%clk 0:00:21.3]} 34. Qe3 {[%clk 0:00:12.3]} 34... Rd5
{[%clk 0:00:21.6]} 35. Qxf3 {[%clk 0:00:11.6]} 35... Rxf3 {[%clk 0:00:21]} 36.
Kg2 {[%clk 0:00:11.8]} 36... Rc3 {[%clk 0:00:20.5]} 37. f3 {[%clk 0:00:11.3]}
37... Rdxc5 {[%clk 0:00:20.2]} 38. Rf2 {[%clk 0:00:11.4]} 38... Rg5+ {[%clk
0:00:18.1]} 39. Kf1 {[%clk 0:00:11.2]} 39... Ra5 {[%clk 0:00:19]} 40. a4 {[%clk
0:00:09]} 40... c5 {[%clk 0:00:17.5]} 41. Kg2 {[%clk 0:00:07.2]} 41... Kg5
{[%clk 0:00:16.9]} 42. Rd2 {[%clk 0:00:07.4]} 42... Rc4 {[%clk 0:00:16.3]} 43.
Rd7 {[%clk 0:00:07.2]} 43... h5 {[%clk 0:00:16.3]} 44. Rd5+ {[%clk 0:00:06.5]}
44... Kh6 {[%clk 0:00:16.6]} 45. Kg3 {[%clk 0:00:06.9]} 45... Rc3 {[%clk
0:00:13.3]} 46. h4 {[%clk 0:00:05.7]} 46... Ra6 {[%clk 0:00:13.6]} 47. Re5
{[%clk 0:00:05.7]} 47... Rf6 {[%clk 0:00:13.8]} 48. Rf1 {[%clk 0:00:04.5]} 48...
c4 {[%clk 0:00:13.7]} 49. Rc5 {[%clk 0:00:04.7]} 49... Ra6 {[%clk 0:00:09.2]}
50. a5 {[%clk 0:00:04.8]} 50... Rd6 {[%clk 0:00:08.6]} 51. Re1 {[%clk
0:00:04.7]} 51... Rdd3 {[%clk 0:00:08.1]} 52. Rf1 {[%clk 0:00:05]} 52... Rc2
{[%clk 0:00:07.7]} 53. Rc6 {[%clk 0:00:04.6]} 53... c3 {[%clk 0:00:07.8]} 54. a6
{[%clk 0:00:04.9]} 54... Rdd2 {[%clk 0:00:07.8]} 55. Re1 {[%clk 0:00:04.7]}
55... Rg2+ {[%clk 0:00:07.9]} 56. Kf4 {[%clk 0:00:04.9]} 56... Rh2 {[%clk
0:00:08.3]} 57. Ree6 {[%clk 0:00:04.6]} 57... Rxh4+ {[%clk 0:00:08.6]} 58. Kg3
{[%clk 0:00:04.6]} 58... Rd4 {[%clk 0:00:05.3]} 59. Rxg6+ {[%clk 0:00:04.6]}
59... Kh7 {[%clk 0:00:06.2]} 60. Rh6+ {[%clk 0:00:02.8]} 60... Kg7 {[%clk
0:00:06.7]} 61. Rhg6+ {[%clk 0:00:03.2]} 61... Kf7 {[%clk 0:00:07.3]} 62. Rcf6+
{[%clk 0:00:03.2]} 62... Ke7 {[%clk 0:00:07.9]} 63. Re6+ {[%clk 0:00:02.8]}
63... Kd7 {[%clk 0:00:08.4]} 64. Ref6 {[%clk 0:00:03.6]} 64... Re2 {[%clk
0:00:05.8]} 65. Rg7+ {[%clk 0:00:03.4]} 65... Re7 {[%clk 0:00:06]} 66. Rgg6
{[%clk 0:00:03.9]} 66... Rc4 {[%clk 0:00:04.2]} 67. Rd6+ {[%clk 0:00:03.3]}
67... Kc7 {[%clk 0:00:04.6]} 68. Rd2 {[%clk 0:00:03.5]} 68... cxd2 {[%clk
0:00:04.6]} 0-1

[Event "*** SCC Grand Prix: Titled Tuesday Blitz"]
[Site "Chess.com"]
[Date "2020.10.13"]
[Round "3"]
[White "TST2014"]
[Black "esrosenberg"]
[Result "1/2-1/2"]
[WhiteElo "2535"]
[BlackElo "2302"]
[TimeControl "180+1"]
[EndTime "10:30:16 PDT"]
[Termination "Game drawn by repetition"]

1. d4 {[%clk 0:03:00.9]} 1... Nf6 {[%clk 0:02:59.9]} 2. c4 {[%clk 0:02:59.1]}
2... e6 {[%clk 0:03:00]} 3. Nf3 {[%clk 0:02:57.4]} 3... d5 {[%clk 0:02:59.1]} 4.
Nc3 {[%clk 0:02:56.8]} 4... Bb4 {[%clk 0:02:59.4]} 5. Qa4+ {[%clk 0:02:55.9]}
5... Nc6 {[%clk 0:02:59.2]} 6. e3 {[%clk 0:02:56]} 6... O-O {[%clk 0:02:58.7]}
7. Bd2 {[%clk 0:02:56]} 7... Bd7 {[%clk 0:02:52.9]} 8. Qc2 {[%clk 0:02:54.5]}
8... Re8 {[%clk 0:02:47.7]} 9. a3 {[%clk 0:02:51]} 9... Bxc3 {[%clk 0:02:43.9]}
10. Bxc3 {[%clk 0:02:50.7]} 10... Ne4 {[%clk 0:02:41.6]} 11. Bd3 {[%clk
0:02:49.5]} 11... f5 {[%clk 0:02:36.1]} 12. b4 {[%clk 0:02:41.5]} 12... Ne7
{[%clk 0:02:29.1]} 13. Ne5 {[%clk 0:02:40.7]} 13... Ng6 {[%clk 0:02:12.8]} 14.
Nxg6 {[%clk 0:02:29]} 14... hxg6 {[%clk 0:02:13.7]} 15. f3 {[%clk 0:02:17.7]}
15... Qh4+ {[%clk 0:01:06.7]} 16. Ke2 {[%clk 0:01:28.1]} 16... Qf2+ {[%clk
0:01:00.8]} 17. Kd1 {[%clk 0:01:27.4]} 17... Ba4 {[%clk 0:00:49.9]} 18. Bxe4
{[%clk 0:01:14.5]} 18... Bxc2+ {[%clk 0:00:42.9]} 19. Bxc2 {[%clk 0:01:15.4]}
19... Qxe3 {[%clk 0:00:40.4]} 20. Bb2 {[%clk 0:01:08.4]} 20... dxc4 {[%clk
0:00:35.6]} 21. Re1 {[%clk 0:01:07.6]} 21... Qf2 {[%clk 0:00:31.8]} 22. Re2
{[%clk 0:01:07.4]} 22... Qg1+ {[%clk 0:00:28.8]} 23. Kd2 {[%clk 0:01:07.4]}
23... Qxh2 {[%clk 0:00:29.2]} 24. Rae1 {[%clk 0:01:03.4]} 24... Qf4+ {[%clk
0:00:26.8]} 25. Kd1 {[%clk 0:01:02.9]} 25... Rad8 {[%clk 0:00:24.2]} 26. Rd2
{[%clk 0:01:02.9]} 26... e5 {[%clk 0:00:22]} 27. d5 {[%clk 0:00:50.9]} 27... c6
{[%clk 0:00:18.6]} 28. d6 {[%clk 0:00:43.2]} 28... e4 {[%clk 0:00:18.9]} 29.
fxe4 {[%clk 0:00:42.2]} 29... Rxd6 {[%clk 0:00:18.7]} 30. Rxd6 {[%clk
0:00:37.5]} 30... Qxd6+ {[%clk 0:00:19.6]} 31. Kc1 {[%clk 0:00:37.9]} 31... fxe4
{[%clk 0:00:16.6]} 32. Bc3 {[%clk 0:00:37.8]} 32... e3 {[%clk 0:00:16.5]} 33.
Kb2 {[%clk 0:00:37.2]} 33... e2 {[%clk 0:00:16.3]} 34. g4 {[%clk 0:00:35.5]}
34... b5 {[%clk 0:00:16.1]} 35. g5 {[%clk 0:00:35.2]} 35... a5 {[%clk
0:00:15.4]} 36. Rh1 {[%clk 0:00:27]} 36... c5 {[%clk 0:00:13.8]} 37. bxc5 {[%clk
0:00:23.9]} 37... Qxc5 {[%clk 0:00:13.3]} 38. Bxa5 {[%clk 0:00:24.1]} 38... b4
{[%clk 0:00:11.3]} 39. Bxb4 {[%clk 0:00:23.7]} 39... Qxb4+ {[%clk 0:00:11]} 40.
axb4 {[%clk 0:00:23.3]} 40... e1=Q {[%clk 0:00:11.9]} 41. Rxe1 {[%clk
0:00:23.3]} 41... Rxe1 {[%clk 0:00:12.8]} 42. Bxg6 {[%clk 0:00:23.9]} 42... Rg1
{[%clk 0:00:11.3]} 43. Bf5 {[%clk 0:00:23.2]} 43... Rxg5 {[%clk 0:00:11.6]} 44.
Be6+ {[%clk 0:00:23.4]} 44... Kf8 {[%clk 0:00:11.9]} 45. Bxc4 {[%clk 0:00:23.8]}
45... Ke7 {[%clk 0:00:12.1]} 46. Kc3 {[%clk 0:00:24.3]} 46... Kd6 {[%clk
0:00:11.7]} 47. b5 {[%clk 0:00:22.4]} 47... Kc5 {[%clk 0:00:10.6]} 48. Be2
{[%clk 0:00:22.3]} 48... Rg3+ {[%clk 0:00:10.2]} 49. Kd2 {[%clk 0:00:22.3]}
49... g5 {[%clk 0:00:08.7]} 50. Ke1 {[%clk 0:00:21.9]} 50... Kb6 {[%clk
0:00:06.3]} 51. Kf2 {[%clk 0:00:22]} 51... Rc3 {[%clk 0:00:06]} 52. Kg2 {[%clk
0:00:21.4]} 52... Kc5 {[%clk 0:00:06]} 53. Kf2 {[%clk 0:00:21.4]} 53... Kd4
{[%clk 0:00:06.2]} 54. Bf3 {[%clk 0:00:19.8]} 54... Rb3 {[%clk 0:00:04.9]} 55.
Bc6 {[%clk 0:00:18.8]} 55... Ke5 {[%clk 0:00:05.1]} 56. Kg2 {[%clk 0:00:18.6]}
56... Kf4 {[%clk 0:00:05.3]} 57. Kf2 {[%clk 0:00:17.9]} 57... Rb2+ {[%clk
0:00:04.9]} 58. Kf1 {[%clk 0:00:17.4]} 58... g4 {[%clk 0:00:04.9]} 59. Kg1
{[%clk 0:00:17.7]} 59... g3 {[%clk 0:00:04.7]} 60. Kf1 {[%clk 0:00:17.9]} 60...
Ke3 {[%clk 0:00:04.6]} 61. Kg1 {[%clk 0:00:18]} 61... Kf4 {[%clk 0:00:03]} 62.
Kf1 {[%clk 0:00:18]} 62... Kg4 {[%clk 0:00:03.5]} 63. Kg1 {[%clk 0:00:18.2]}
63... Kh3 {[%clk 0:00:04.1]} 64. Bd7+ {[%clk 0:00:17.9]} 64... Kh4 {[%clk
0:00:03.8]} 65. Kf1 {[%clk 0:00:16.2]} 65... Rb1+ {[%clk 0:00:04]} 66. Kg2
{[%clk 0:00:16.3]} 66... Rb2+ {[%clk 0:00:04.4]} 67. Kg1 {[%clk 0:00:16.5]}
67... Rf2 {[%clk 0:00:05.1]} 68. Bc6 {[%clk 0:00:16]} 68... Rb2 {[%clk
0:00:05.3]} 69. Bd7 {[%clk 0:00:16.1]} 69... Kg5 {[%clk 0:00:05.1]} 70. Kf1
{[%clk 0:00:15.5]} 70... Kf4 {[%clk 0:00:06]} 71. Bc6 {[%clk 0:00:15.4]} 1/2-1/2